bitfinex/quotes_SOLUSD_20251117
["timestamp","ask_amount","ask_price","bid_price","bid_amount"]
[1763411121577,4.000829,131.11,131.09,8.93436358]
[1763411121967,4.000829,131.11,130.97,11.79512087]
[1763411121968,10.47882769,131.1,131.07,8.93436358]
[1763411122301,10.47882769,131.1,131.03,0.69]
[1763411122302,10.47882769,131.1,131.06,8.93436358]
[1763411122474,9.78882769,131.1,131.07,8.93436358]
[1763411122679,0.69,131.09,131.07,8.93436358]
[1763411122872,0.69,131.09,131.06,8.93436358]
[1763411123197,9.78882769,131.1,131.05,0.69]
[1763411123397,4.000829,131.11,131.09,8.93436358]
[1763411123603,6.11254966,131.19,131.1,8.93436358]
[1763411123896,0.69,131.17,131.12,8.93436358]
[1763411124106,0.69,131.17,131.12,9.62436358]
[1763411124321,0.69,131.17,131.16,8.93436358]
[1763411124522,3.99773221,131.2,131.16,8.93436358]
[1763411124523,4.68773221,131.2,131.16,8.93436358]
[1763411124721,0.69,131.2,131.14,18.81096]
[1763411124892,0.69,131.19,131.14,8.93436358]
[1763411125096,18.72319127,131.18,131.09,18.12096]
[1763411125285,9.78882769,131.18,131.1,0.69]
[1763411125481,3.99719046,131.22,131.1,0.69]
[1763411125482,9.78882769,131.16,131.1,0.69]
[1763411125674,9.78882769,131.16,131.11,8.93436358]
[1763411125991,9.78882769,131.14,131.12,8.93436358]
[1763411126390,0.69,131.14,131.12,8.93436358]
[1763411126981,0.69,131.14,131.05,18.12096]
[1763411127284,0.69,131.14,131.1,8.93436358]
[1763411127485,9.78882769,131.15,131.11,8.93436358]
[1763411127686,9.78882769,131.15,131.07,18.12096]
[1763411127687,0.69,131.15,131.12,8.93436358]
[1763411127874,9.78882769,131.16,131.12,8.93436358]
[1763411128296,18.72319127,131.17,131.09,0.69]
[1763411128499,8.93436358,131.16,131.1,8.93436358]
[1763411128693,9.78882769,131.14,131.07,18.12096]
[1763411128881,8.93436358,131.14,131.09,8.93436358]
[1763411129081,9.78882769,131.14,131.09,8.93436358]
[1763411129583,9.78882769,131.12,131.08,8.93436358]
[1763411129779,9.78882769,131.1,131.07,27.05532358]
[1763411129983,9.78882769,131.1,131.07,8.93436358]
[1763411130179,20.12096,131.18,131.0,6.37158724]
[1763411130180,18.12096,131.18,131.0,6.37158724]
[1763411130385,9.78882769,131.13,131.09,8.93436358]
[1763411130614,9.78882769,131.15,131.11,8.93436358]
[1763411130814,0.69,131.15,131.07,0.69]
[1763411130980,0.69,131.15,131.12,8.93436358]
[1763411131190,0.69,131.17,131.07,0.69]
[1763411131512,0.69,131.16,131.13,8.93436358]
[1763411131884,9.78882769,131.17,131.15,8.93436358]
[1763411132287,0.69,131.17,131.15,8.93436358]
[1763411133219,0.69,131.17,131.08,18.12096]
[1763411133399,0.69,131.17,131.14,8.93436358]
[1763411133729,0.69,131.17,131.09,0.69]
[1763411133886,0.69,131.17,131.13,8.93436358]
[1763411134089,0.69,131.2,131.16,8.93436358]
[1763411134527,0.69,131.2,131.15,8.93436358]
[1763411134699,9.62436358,131.2,131.15,8.93436358]
[1763411134896,9.62436358,131.2,131.16,8.93436358]
[1763411134897,0.69,131.2,131.16,8.93436358]
[1763411135092,9.78882769,131.18,131.12,18.81096]
[1763411135306,9.78882769,131.18,131.07,0.76295109]
[1763411135618,9.78882769,131.16,131.14,8.93436358]
[1763411135925,10.47882769,131.16,131.15,8.93436358]
[1763411136500,9.78882769,131.17,131.15,8.93436358]
[1763411136901,8.93436358,131.2,131.12,18.12096]
[1763411136902,0.69,131.16,131.12,18.12096]
[1763411137098,0.69,131.16,131.15,8.93436358]
[1763411137417,0.69,131.16,131.1,0.69]
[1763411137602,0.69,131.16,131.15,8.93436358]
[1763411138297,0.69,131.16,131.08,18.12096]
[1763411138500,0.69,131.16,131.13,8.93436358]
[1763411138720,102.7,131.15,131.13,8.93436358]
[1763411139016,112.48882769,131.15,131.14,8.93436358]
[1763411139730,113.17882769,131.15,131.09,0.69]
[1763411140233,8.93436358,131.2,131.06,0.69]
[1763411140234,9.78882769,131.13,131.06,0.69]
[1763411140732,102.7,131.14,131.12,17.86872716]
[1763411141034,9.78882769,131.17,131.13,9.62436358]
[1763411141194,167.49719046,131.22,131.16,27.05532358]
[1763411141195,0.69,131.22,131.16,27.05532358]
[1763411141528,0.69,131.21,131.14,0.69]
[1763411141731,0.69,131.21,131.2,8.93436358]
[1763411141933,10.47882769,131.21,131.2,8.93436358]
[1763411142295,10.47882769,131.21,131.19,8.93436358]
[1763411142503,10.47882769,131.2,131.18,8.93436358]
[1763411142726,18.12096,131.25,131.19,8.93436358]
[1763411142939,9.78882769,131.19,131.15,18.12096]
[1763411143099,9.78882769,131.19,131.15,18.83096]
[1763411143725,9.78882769,131.19,131.08,18.12096]
[1763411143726,0.69,131.18,131.11,18.83096]
[1763411144093,9.78882769,131.19,131.17,8.93436358]
[1763411144407,9.78882769,131.23,131.18,8.93436358]
[1763411144717,10.47882769,131.23,131.22,8.93436358]
[1763411145016,9.78882769,131.21,131.15,18.12096]
[1763411145206,9.78882769,131.21,131.15,18.83096]
[1763411145594,0.69,131.21,131.15,18.83096]
[1763411145797,9.78882769,131.19,131.15,18.12096]
[1763411146001,9.78882769,131.19,131.13,0.71]
[1763411146219,10.47882769,131.19,131.13,9.64436358]
[1763411146393,10.47882769,131.19,131.13,27.05532358]
[1763411146394,9.78882769,131.17,131.13,27.05532358]
[1763411146818,0.69,131.17,131.13,27.05532358]
[1763411147019,0.69,131.17,131.13,8.93436358]
[1763411147609,0.69,131.17,131.12,27.05532358]
[1763411147806,0.69,131.17,131.13,8.93436358]
[1763411148213,0.69,131.17,131.12,27.05532358]
[1763411148934,0.69,131.17,131.12,32.07594145]
[1763411149355,0.69,131.17,131.13,13.95498145]
[1763411149844,9.78882769,131.16,131.12,18.12096]
[1763411150314,13.95498145,131.22,131.1,13.95498145]
[1763411150315,0.69,131.15,131.1,13.95498145]
[1763411150514,0.69,131.15,131.1,32.07594145]
[1763411150515,9.78882769,131.14,131.1,32.07594145]
[1763411150742,9.78882769,131.14,131.11,13.95498145]
[1763411151114,0.69,131.14,131.1,32.07594145]
[1763411151946,9.78882769,131.13,131.08,13.95498145]
[1763411152124,13.95498145,131.12,131.03,6.37158724]
[1763411152333,13.95498145,131.12,130.91,135.32629797]
[1763411152334,9.78882769,131.08,131.01,6.37158724]
[1763411152633,9.78882769,131.09,131.06,18.12096]
[1763411152836,10.47882769,131.09,131.06,18.12096]
[1763411153013,0.69,131.08,131.06,18.12096]
[1763411153828,10.47882769,131.08,131.01,6.37158724]
[1763411154012,23.74380914,131.07,131.0,7.08158724]
[1763411154213,10.47882769,131.07,131.02,13.95498145]
[1763411154432,10.47882769,131.07,131.03,32.07594145]
[1763411154612,10.47882769,131.07,131.01,0.71]
[1763411154613,10.47882769,131.07,131.02,13.95498145]
[1763411154807,10.47882769,131.07,131.03,18.12096]
[1763411155250,0.69,131.06,131.01,13.95498145]
[1763411155424,0.69,131.06,131.02,18.12096]
[1763411156053,9.78882769,131.12,131.03,18.12096]
[1763411156255,9.78882769,131.11,131.03,18.12096]
[1763411156555,13.95498145,131.07,131.03,18.12096]
[1763411156765,0.69,131.07,131.03,32.07594145]
[1763411156931,13.95498145,131.09,131.04,0.71]
[1763411157131,0.69,131.1,131.04,0.71]
[1763411157132,0.69,131.1,131.06,13.95498145]
[1763411157331,9.78882769,131.12,131.07,32.07594145]
[1763411157526,10.47882769,131.12,131.07,32.07594145]
[1763411157720,0.69,131.11,131.07,32.07594145]
[1763411157930,102.7,131.2,131.08,13.95498145]
[1763411158127,0.69,131.12,131.08,13.95498145]
[1763411158345,14.64498145,131.12,131.08,18.12096]
[1763411158551,0.69,131.12,131.08,18.12096]
[1763411158861,0.69,131.11,131.08,32.07594145]
[1763411159021,0.69,131.11,131.08,18.12096]
[1763411160234,20.12096,131.19,131.08,18.12096]
[1763411160235,13.95498145,131.14,131.08,32.07594145]
[1763411160436,9.78882769,131.13,131.08,32.07594145]
[1763411160643,24.43380914,131.13,131.07,20.32656869]
[1763411160837,15.95498145,131.22,131.1,18.12096]
[1763411161029,9.78882769,131.14,131.09,13.95498145]
[1763411161529,9.78882769,131.15,131.1,32.78594145]
[1763411162046,10.47882769,131.15,131.1,32.78594145]
[1763411162223,13.95498145,131.12,131.08,6.37158724]
[1763411162548,9.78882769,131.13,131.07,18.12096]
[1763411162732,23.74380914,131.11,131.07,18.12096]
[1763411162931,9.78882769,131.07,131.04,6.37158724]
[1763411163151,13.95498145,131.06,131.01,6.37158724]
[1763411163352,13.95498145,131.05,131.01,24.49254724]
[1763411163547,2.0,131.22,131.04,20.32656869]
[1763411163771,13.95498145,131.16,131.08,24.49254724]
[1763411163950,9.78882769,131.16,131.11,13.95498145]
[1763411164140,9.78882769,131.17,131.1,6.37158724]
[1763411164469,9.78882769,131.17,131.11,0.71]
[1763411164643,10.47882769,131.17,131.12,13.95498145]
[1763411164973,9.78882769,131.15,131.08,6.37158724]
[1763411165181,9.78882769,131.12,131.06,6.37158724]
[1763411165352,18.12096,131.17,131.04,6.37158724]
[1763411165353,13.95498145,131.08,131.04,6.37158724]
[1763411165549,13.95498145,131.07,131.05,6.37158724]
[1763411165761,14.64498145,131.06,131.04,6.37158724]
[1763411166074,23.74380914,131.05,131.02,6.37158724]
[1763411166252,23.74380914,131.05,130.99,18.12096]
[1763411166253,0.69,131.05,131.01,6.37158724]
[1763411166461,0.69,131.09,131.04,13.95498145]
[1763411166644,0.69,131.09,131.05,6.37861065]
[1763411166963,0.69,131.09,131.06,18.12096]
[1763411167178,0.69,131.09,131.06,24.49957065]
[1763411167468,0.69,131.11,131.07,13.95498145]
[1763411167649,0.69,131.11,131.06,18.12096]
[1763411167843,0.69,131.11,131.07,13.95498145]
[1763411168245,14.64498145,131.11,131.06,20.3335921]
[1763411168470,23.74380914,131.09,131.04,38.4545521]
[1763411168669,0.69,131.1,131.04,38.4545521]
[1763411168862,9.78882769,131.12,131.04,32.07594145]
[1763411168863,14.64498145,131.09,131.04,32.07594145]
[1763411169078,0.69,131.12,131.05,0.71]
[1763411169252,6.14564699,131.25,131.08,13.95498145]
[1763411169253,0.69,131.11,131.08,13.95498145]
[1763411169461,23.74380914,131.1,131.07,6.37861065]
[1763411169776,9.78882769,131.07,131.03,13.95498145]
[1763411169948,9.78882769,131.09,131.02,13.95498145]
[1763411170146,13.95498145,131.07,131.02,13.95498145]
[1763411170567,0.69,131.06,131.02,13.95498145]
[1763411170768,0.69,131.06,131.03,6.37861065]
[1763411170967,0.69,131.08,131.01,7.08861065]
[1763411171166,0.69,131.08,131.05,13.95498145]
[1763411171373,0.69,131.08,131.03,6.37861065]
[1763411171374,0.69,131.08,131.04,13.95498145]
[1763411171968,9.78882769,131.07,131.03,13.95498145]
[1763411172278,0.72,131.09,131.06,13.95498145]
[1763411172504,9.78882769,131.11,131.07,13.95498145]
[1763411172653,0.72,131.1,131.07,13.95498145]
[1763411173053,0.72,131.12,131.09,13.95498145]
[1763411173256,0.72,131.16,131.09,24.49957065]
[1763411173585,13.95498145,131.22,131.13,13.95498145]
[1763411173586,13.95498145,131.18,131.13,13.95498145]
[1763411173874,0.72,131.21,131.14,13.95498145]
[1763411174089,0.72,131.24,131.16,13.95498145]
[1763411174251,13.95498145,131.21,131.15,13.95498145]
[1763411174445,13.95498145,131.2,131.15,13.95498145]
[1763411174646,13.95498145,131.16,131.11,6.37861065]
[1763411174871,9.78882769,131.14,131.1,6.37861065]
[1763411175068,9.78882769,131.14,131.1,20.33031431]
[1763411175253,0.72,131.13,131.1,20.33031431]
[1763411175459,0.72,131.13,131.1,13.95498145]
[1763411175658,23.74380914,131.12,131.07,6.37533286]
[1763411175858,13.95498145,131.11,131.06,20.33031431]
[1763411176193,0.72,131.1,131.04,6.37533286]
[1763411176351,0.72,131.1,131.06,13.95498145]
[1763411177061,9.78882769,131.12,131.06,13.95498145]
[1763411177251,0.72,131.13,131.09,13.95498145]
[1763411177453,0.72,131.13,131.07,7.05533286]
[1763411177655,23.74380914,131.12,131.06,24.49629286]
[1763411177869,23.74380914,131.12,131.06,32.07594145]
[1763411178070,24.45380914,131.12,131.07,13.95498145]
[1763411178381,10.49882769,131.12,131.08,13.95498145]
[1763411178681,0.71,131.11,131.06,24.49629286]
[1763411178980,23.74380914,131.13,131.08,13.95498145]
[1763411179284,24.45380914,131.13,131.08,13.95498145]
[1763411179477,0.71,131.12,131.08,13.95498145]
[1763411180260,0.71,131.12,131.06,18.82096]
[1763411180261,14.66498145,131.12,131.06,25.19629286]
[1763411180463,14.66498145,131.12,131.07,13.95498145]
[1763411180680,14.66498145,131.12,131.06,25.19629286]
[1763411180681,13.95498145,131.09,131.05,6.37533286]
[1763411180982,13.95498145,131.08,131.03,13.95498145]
[1763411181182,24.45380914,131.08,131.03,13.95498145]
[1763411181385,9.78882769,131.09,131.05,13.95498145]
[1763411181885,102.7,131.09,131.07,13.95498145]
[1763411182061,102.7,131.12,131.08,13.95498145]
[1763411182258,102.7,131.12,131.09,13.95498145]
[1763411182785,103.41,131.12,131.07,24.49629286]
[1763411182950,103.41,131.12,131.09,13.95498145]
[1763411183156,0.71,131.11,131.08,13.95498145]
[1763411183496,0.71,131.11,131.06,13.95498145]
[1763411183787,14.66498145,131.11,131.05,24.49629286]
[1763411183989,126.44380914,131.1,131.05,24.49629286]
[1763411184204,127.15380914,131.1,131.05,38.45127431]
[1763411184357,0.71,131.09,131.05,38.45127431]
[1763411184557,0.71,131.09,131.06,13.95498145]
[1763411185667,0.71,131.09,131.05,24.49629286]
[1763411185875,0.71,131.09,131.05,32.07594145]
[1763411186181,0.71,131.09,131.06,13.95498145]
[1763411186761,9.78882769,131.08,131.04,6.37533286]
[1763411186982,9.78882769,131.08,131.04,13.95498145]
[1763411187297,9.78882769,131.06,131.02,20.33031431]
[1763411187480,9.78882769,131.06,131.03,13.95498145]
[1763411187784,9.78882769,131.06,131.02,38.45127431]
[1763411188089,9.78882769,131.07,131.03,20.33031431]
[1763411188462,10.49882769,131.07,131.03,20.33031431]
[1763411188781,13.95498145,131.09,131.03,6.37533286]
[1763411189097,0.71,131.09,131.05,13.95498145]
[1763411189258,0.71,131.09,131.05,20.33031431]
[1763411190469,0.71,131.09,131.06,13.95498145]
[1763411190668,9.78882769,131.1,131.06,21.03031431]
[1763411190875,9.78882769,131.11,131.08,13.95498145]
[1763411191189,9.78882769,131.11,131.06,18.12096]
[1763411191190,13.95498145,131.1,131.06,18.12096]
[1763411191396,9.78882769,131.08,131.06,6.37533286]
[1763411191693,126.44380914,131.08,131.04,6.37533286]
[1763411191874,127.15380914,131.08,131.04,6.37533286]
[1763411192075,9.78882769,131.06,131.04,6.37533286]
[1763411192466,9.78882769,131.06,131.02,13.95498145]
[1763411192467,9.78882769,131.04,131.02,6.37533286]
[1763411192666,9.78882769,131.02,131.0,6.37533286]
[1763411192904,23.74380914,131.02,130.99,6.37533286]
[1763411193067,0.71,131.01,130.99,6.37533286]
[1763411193266,10.49882769,131.01,131.0,6.37533286]
[1763411193576,10.49882769,131.01,130.99,6.37533286]
[1763411193992,127.15380914,131.0,130.99,6.37533286]
[1763411194170,127.15380914,131.0,130.97,6.37533286]
[1763411194497,127.15380914,130.99,130.97,6.37533286]
[1763411194674,23.74380914,130.98,130.96,6.57533286]
[1763411194997,23.74380914,130.98,130.86,13.95498145]
[1763411194998,9.78882769,130.96,130.87,9.20614054]
[1763411195296,23.74380914,130.92,130.87,0.7]
[1763411195496,23.74380914,130.92,130.87,18.82096]
[1763411195675,24.45380914,130.92,130.83,8.50614054]
[1763411195991,24.45380914,130.92,130.67,33.75992914]
[1763411195992,24.45380914,130.92,130.85,14.65498145]
[1763411196404,24.45380914,130.92,130.85,0.7]
[1763411196689,24.45380914,130.92,130.83,0.7]
[1763411198390,24.45380914,130.92,130.85,32.77594145]
[1763411198578,24.45380914,130.92,130.84,18.12096]
[1763411198908,24.45380914,130.92,130.84,14.65498145]
[1763411199209,10.49882769,130.92,130.85,0.7]
[1763411199370,24.45380914,130.92,130.85,0.7]
[1763411199572,24.45380914,130.92,130.86,13.95498145]
[1763411199790,24.45380914,130.92,130.85,14.65498145]
[1763411200168,24.45380914,130.92,130.86,13.95498145]
[1763411200366,24.45380914,130.92,130.85,0.7]
[1763411200584,23.74380914,130.92,130.88,0.7]
[1763411200788,13.95498145,130.94,130.89,13.95498145]
[1763411201102,13.95498145,130.94,130.9,13.95498145]
[1763411201103,9.78882769,130.94,130.9,13.95498145]
[1763411201501,9.78882769,130.92,130.87,0.7]
[1763411201688,23.74380914,130.92,130.87,14.65498145]
[1763411201888,9.78882769,130.92,130.88,13.95498145]
[1763411202105,10.47882769,130.92,130.87,14.65498145]
[1763411202307,24.43380914,130.92,130.86,13.95498145]
[1763411202512,9.78882769,130.92,130.88,14.66498145]
[1763411202680,9.78882769,130.92,130.88,0.71]
[1763411202885,9.78882769,130.92,130.88,14.66498145]
[1763411203405,23.74380914,130.93,130.88,0.71]
[1763411203596,9.78882769,130.95,130.89,14.66498145]
[1763411203812,9.78882769,130.93,130.89,14.66498145]
[1763411204198,9.78882769,130.94,130.9,14.66498145]
[1763411204520,13.95498145,130.96,130.91,0.91]
[1763411204814,13.95498145,130.96,130.91,14.86498145]
[1763411204815,9.78882769,130.95,130.91,14.86498145]
[1763411205807,9.78882769,130.95,130.92,0.71]
[1763411206628,0.69,130.97,130.92,14.66498145]
[1763411206629,9.78882769,130.96,130.92,14.66498145]
[1763411206785,9.78882769,130.97,130.93,14.66498145]
[1763411207489,13.95498145,130.98,130.94,14.66498145]
[1763411207490,9.78882769,130.98,130.94,14.66498145]
[1763411208109,38.09695644,131.04,130.91,0.2]
[1763411208110,13.95498145,130.95,130.91,0.2]
[1763411208308,9.78882769,130.96,130.92,14.66498145]
[1763411208508,9.78882769,130.96,130.92,0.71]
[1763411208509,24.43380914,130.96,130.92,0.71]
[1763411208891,9.78882769,130.96,130.92,0.71]
[1763411209391,9.78882769,130.96,130.92,9.64630949]
[1763411209587,8.93630949,130.96,130.91,9.13630949]
[1763411209788,8.93630949,130.96,130.92,0.71]
[1763411209990,9.78882769,130.95,130.91,9.84630949]
[1763411211212,18.72513718,130.93,130.91,0.2]
[1763411211409,8.93630949,130.92,130.91,0.2]
[1763411211615,19.41513718,130.92,130.91,0.2]
[1763411212000,9.78882769,130.91,130.84,0.71]
[1763411212222,9.78882769,130.87,130.83,8.93630949]
[1763411212523,9.78882769,130.87,130.83,9.64630949]
[1763411212710,9.78882769,130.87,130.84,0.71]
[1763411213018,8.93630949,130.88,130.84,0.71]
[1763411213314,9.78882769,130.87,130.84,0.71]
[1763411213512,9.78882769,130.88,130.84,9.64630949]
[1763411213894,8.93630949,130.87,130.84,0.71]
[1763411214133,8.93630949,130.9,130.85,9.64630949]
[1763411214291,18.72513718,130.91,130.86,8.93630949]
[1763411214490,18.72513718,130.91,130.86,9.64630949]
[1763411214806,18.72513718,130.91,130.87,0.71]
[1763411215294,19.41513718,130.91,130.86,8.93630949]
[1763411216002,19.41513718,130.91,130.86,9.64630949]
[1763411216523,9.78882769,130.89,130.85,8.93630949]
[1763411216923,9.78882769,130.89,130.85,9.64630949]
[1763411217125,10.93630949,130.96,130.8,0.71]
[1763411217126,9.78882769,130.86,130.8,0.71]
[1763411217308,18.72513718,130.86,130.81,9.64630949]
[1763411217490,9.78882769,130.84,130.79,9.64630949]
[1763411217698,9.78882769,130.84,130.82,18.12096]
[1763411217999,9.78882769,130.84,130.8,0.71]
[1763411218000,8.93630949,130.84,130.8,0.71]
[1763411218200,8.93630949,130.84,130.78,0.2]
[1763411218201,9.78882769,130.82,130.78,9.13630949]
[1763411218719,8.93630949,130.82,130.78,19.03096]
[1763411218925,9.78882769,130.8,130.78,0.2]
[1763411219218,18.72513718,130.79,130.78,0.2]
[1763411219427,19.41513718,130.79,130.78,0.2]
[1763411220641,9.78882769,130.78,130.77,0.2]
[1763411220812,10.47882769,130.78,130.77,0.2]
[1763411220994,9.78882769,130.78,130.77,0.2]
[1763411221329,18.72513718,130.78,130.77,0.2]
[1763411222294,19.41513718,130.78,130.77,0.2]
[1763411222729,19.41513718,130.78,130.69,18.12096]
[1763411222905,19.41513718,130.78,130.69,0.71]
[1763411222906,18.72513718,130.71,130.69,0.71]
[1763411223222,9.78882769,130.72,130.7,0.71]
[1763411223425,18.72513718,130.72,130.7,0.71]
[1763411223742,8.93630949,130.73,130.7,0.71]
[1763411224024,18.12096,130.78,130.67,0.2]
[1763411224025,8.93630949,130.72,130.69,0.71]
[1763411224197,8.93630949,130.72,130.69,18.83096]
[1763411224403,9.78882769,130.75,130.69,18.83096]
[1763411224404,8.93630949,130.71,130.69,18.83096]
[1763411224630,8.93630949,130.72,130.69,0.71]
[1763411225300,9.78882769,130.75,130.69,0.71]
[1763411225510,8.93630949,130.72,130.69,0.71]
[1763411225704,18.12096,130.78,130.69,9.64630949]
[1763411225928,8.93630949,130.75,130.69,0.71]
[1763411226236,8.93630949,130.75,130.7,0.71]
[1763411227120,8.93630949,130.76,130.73,18.12096]
[1763411227305,8.93630949,130.77,130.74,18.12096]
[1763411228240,0.69,130.83,130.75,18.83096]
[1763411228420,8.93630949,130.8,130.76,0.71]
[1763411228736,8.93630949,130.77,130.73,18.83096]
[1763411228937,8.93630949,130.77,130.74,0.71]
[1763411229147,0.69,130.8,130.74,0.71]
[1763411229441,8.93630949,130.78,130.74,0.71]
[1763411229746,9.78882769,130.74,130.71,0.71]
[1763411229945,8.93630949,130.72,130.68,0.71]
[1763411230241,8.93630949,130.71,130.68,0.71]
[1763411230440,18.72513718,130.7,130.67,0.2]
[1763411230726,8.93630949,130.69,130.67,0.2]
[1763411230924,18.72513718,130.68,130.67,0.2]
[1763411232151,19.38513718,130.68,130.67,0.2]
[1763411232307,18.72513718,130.68,130.67,0.2]
[1763411232509,19.38513718,130.68,130.67,0.2]
[1763411232724,18.72513718,130.68,130.67,0.2]
[1763411232916,9.78882769,130.68,130.67,0.2]
[1763411233117,9.78882769,130.73,130.67,18.99096]
[1763411233627,18.72513718,130.73,130.68,0.67]
[1763411233843,9.78882769,130.72,130.68,0.67]
[1763411234015,9.78882769,130.72,130.68,9.60630949]
[1763411234217,9.78882769,130.72,130.68,0.67]
[1763411234412,9.78882769,130.72,130.69,0.67]
[1763411234813,8.93630949,130.74,130.69,0.67]
[1763411235536,9.78882769,130.72,130.69,0.67]
[1763411235716,9.78882769,130.72,130.67,9.13630949]
[1763411235717,9.78882769,130.7,130.67,0.2]
[1763411236432,18.72513718,130.7,130.67,18.32096]
[1763411236945,9.78882769,130.7,130.67,18.99096]
[1763411237317,9.78882769,130.7,130.67,0.87]
[1763411238038,10.46882769,130.79,130.69,27.05726949]
[1763411238241,8.93630949,130.76,130.7,0.68]
[1763411238655,8.93630949,130.76,130.71,18.12096]
[1763411238946,9.78882769,130.77,130.72,18.12096]
[1763411239136,9.78882769,130.74,130.72,18.12096]
[1763411239521,9.78882769,130.74,130.71,18.12096]
[1763411239841,8.93630949,130.81,130.76,18.12096]
[1763411240045,8.93630949,130.81,130.76,27.05726949]
[1763411240217,8.93630949,130.82,130.77,27.73726949]
[1763411240533,8.93630949,130.8,130.77,18.12096]
[1763411240715,9.78882769,130.77,130.72,0.68]
[1763411240909,8.93630949,130.77,130.72,27.73726949]
[1763411241126,18.72513718,130.77,130.72,18.80096]
[1763411241444,9.78882769,130.8,130.69,0.68]
[1763411241445,18.72513718,130.75,130.69,0.68]
[1763411241622,18.72513718,130.75,130.7,8.93630949]
[1763411241941,18.72513718,130.75,130.71,0.68]
[1763411243415,9.78882769,130.78,130.71,27.73726949]
[1763411243617,9.78882769,130.76,130.71,18.80096]
[1763411243831,4.00465698,130.84,130.77,18.12096]
[1763411244030,9.61630949,130.85,130.8,18.12096]
[1763411244234,8.93630949,130.83,130.73,0.68]
[1763411244420,8.93630949,130.83,130.77,8.93630949]
[1763411244725,9.78882769,130.8,130.75,27.05726949]
[1763411245045,9.78882769,130.78,130.73,0.68]
[1763411245351,9.78882769,130.78,130.7,0.68]
[1763411245644,18.72513718,130.73,130.68,0.68]
[1763411245856,18.72513718,130.73,130.69,18.12096]
[1763411246056,9.78882769,130.73,130.68,9.61630949]
[1763411246263,8.93630949,130.7,130.67,0.2]
[1763411246560,18.72513718,130.74,130.69,8.93630949]
[1763411246716,18.72513718,130.74,130.69,9.61630949]
[1763411247224,9.61630949,130.74,130.69,9.61630949]
[1763411247640,9.61630949,130.74,130.69,8.93630949]
[1763411247845,0.68,130.83,130.73,8.93630949]
[1763411248119,0.68,130.83,130.72,18.12096]
[1763411248120,9.78882769,130.79,130.75,8.93630949]
[1763411248529,8.93630949,130.79,130.73,18.12096]
[1763411248729,18.72513718,130.77,130.72,8.93630949]
[1763411249042,9.78882769,130.77,130.72,8.93630949]
[1763411249241,22.12570873,130.82,130.73,8.93630949]
[1763411249446,8.93630949,130.79,130.74,27.05726949]
[1763411249629,8.93630949,130.79,130.74,18.12096]
[1763411249836,9.78882769,130.8,130.67,0.2]
[1763411249837,19.40513718,130.78,130.69,18.12096]
[1763411250139,8.93630949,130.77,130.73,18.12096]
[1763411250348,19.40513718,130.78,130.73,18.12096]
[1763411251056,9.61630949,130.77,130.73,18.12096]
[1763411251468,8.93630949,130.78,130.73,8.93630949]
[1763411251939,9.61630949,130.78,130.73,8.9078386]
[1763411252120,8.93630949,130.78,130.73,8.93630949]
[1763411252320,9.78882769,130.77,130.73,8.93630949]
[1763411252528,18.72513718,130.79,130.74,8.93630949]
[1763411252746,0.68,130.78,130.74,8.93630949]
[1763411253330,0.68,130.78,130.73,9.61630949]
[1763411253531,9.61630949,130.78,130.73,9.61630949]
[1763411253835,0.68,130.78,130.73,9.61630949]
[1763411254525,9.61630949,130.78,130.73,8.93630949]
[1763411254732,8.93630949,130.75,130.7,8.93630949]
[1763411254936,9.78882769,130.73,130.7,8.93630949]
[1763411255139,10.46882769,130.75,130.71,8.93630949]
[1763411255457,18.72513718,130.77,130.72,8.93630949]
[1763411255654,9.78882769,130.77,130.73,8.93630949]
[1763411255858,19.40513718,130.79,130.73,8.93630949]
[1763411256230,19.40513718,130.79,130.74,8.93630949]
[1763411256432,19.40513718,130.79,130.73,8.93630949]
[1763411256649,9.61630949,130.78,130.72,0.68]
[1763411256883,9.78882769,130.77,130.72,27.05726949]
[1763411257049,9.78882769,130.77,130.73,8.93630949]
[1763411257256,0.68,130.77,130.73,8.93630949]
[1763411257558,0.68,130.79,130.74,8.93630949]
[1763411257761,9.78882769,130.81,130.76,8.93630949]
[1763411257935,18.72513718,130.81,130.76,0.68]
[1763411258260,9.61630949,130.8,130.74,9.61630949]
[1763411258759,8.93630949,130.79,130.74,9.61630949]
[1763411259059,9.78882769,130.77,130.74,9.61630949]